bitfinex/quotes_SOLUSD_20250529
["timestamp","ask_amount","ask_price","bid_price","bid_amount"]
[1748516663694,6.21452661,172.77,172.76,0.14216157]
[1748516663888,6.21452661,172.77,172.76,12.42408699]
[1748516664403,6.21452661,172.77,172.76,12.28192542]
[1748516664607,0.42648471,172.76,172.75,12.42408699]
[1748516664801,19.07613357,172.76,172.72,0.14216157]
[1748516665002,19.07613357,172.76,172.72,12.28192542]
[1748516665208,0.42648471,172.74,172.72,12.28192542]
[1748516665386,0.42648471,172.74,172.71,12.28192542]
[1748516665595,0.42648471,172.74,172.68,0.14216157]
[1748516665812,0.42648471,172.74,172.71,12.28192542]
[1748516667210,5.78938227,172.73,172.71,12.28192542]
[1748516669589,5.78938227,172.73,172.68,0.14216157]
[1748516669917,5.78938227,172.73,172.7,12.28192542]
[1748516670810,5.78938227,172.73,172.69,12.28192542]
[1748516670811,19.07613357,172.72,172.69,12.28192542]
[1748516671623,0.42648471,172.7,172.69,12.42408699]
[1748516672612,0.42648471,172.7,172.68,12.28192542]
[1748516672811,19.07613357,172.7,172.68,12.28192542]
[1748516673798,5.79072326,172.69,172.68,12.28192542]
[1748516674493,5.79072326,172.69,172.67,12.28192542]
[1748516674494,24.86685683,172.69,172.67,12.28192542]
[1748516674708,19.07613357,172.68,172.67,12.28192542]
[1748516674891,19.07613357,172.68,172.65,0.14216157]
[1748516675109,19.07613357,172.68,172.61,0.14216157]
[1748516675304,19.07613357,172.68,172.65,12.28192542]
[1748516675608,32.54945683,172.69,172.58,35.48216157]
[1748516675609,19.07613357,172.66,172.58,35.48216157]
[1748516675819,19.07613357,172.66,172.62,12.28192542]
[1748516676016,19.07613357,172.64,172.62,12.28192542]
[1748516676395,0.42648471,172.64,172.63,12.28192542]
[1748516677804,6.21906917,172.64,172.63,12.28192542]
[1748516678332,6.21906917,172.64,172.58,0.14216157]
[1748516678493,6.21906917,172.64,172.62,12.28192542]
[1748516678693,159.58192542,172.68,172.63,12.28192542]
[1748516678895,0.14216157,172.67,172.61,0.14216157]
[1748516679116,0.14216157,172.67,172.66,12.28192542]
[1748516679313,147.3,172.68,172.66,12.28192542]
[1748516679514,0.14216157,172.67,172.66,12.28192542]
[1748516680025,6.07571712,172.67,172.66,12.28192542]
[1748516680191,6.07571712,172.67,172.61,0.14216157]
[1748516680192,0.14216157,172.66,172.61,0.14216157]
[1748516680401,0.14216157,172.66,172.65,12.42408699]
[1748516684712,0.14216157,172.66,172.65,0.14216157]
[1748516684917,0.42648471,172.66,172.65,12.42408699]
[1748516685133,6.21821412,172.66,172.65,12.28192542]
[1748516685334,24.86786298,172.66,172.65,12.28192542]
[1748516688928,24.86786298,172.66,172.64,12.28192542]
[1748516690914,24.86786298,172.66,172.65,12.28192542]
[1748516691625,24.86786298,172.66,172.64,12.28192542]
[1748516692914,24.86786298,172.66,172.63,12.28192542]
[1748516693314,18.933972,172.65,172.63,12.28192542]
[1748516693738,0.28432314,172.65,172.63,12.28192542]
[1748516694316,0.28432314,172.65,172.59,0.14216157]
[1748516694645,147.58432314,172.65,172.63,12.28192542]
[1748516694855,0.42648471,172.63,172.58,0.14216157]
[1748516695017,0.42648471,172.63,172.61,0.14216157]
[1748516695220,0.42648471,172.63,172.61,12.42408699]
[1748516695519,0.42648471,172.63,172.62,12.42408699]
[1748516695925,0.28432314,172.63,172.62,12.42408699]
[1748516697930,0.42648471,172.64,172.63,0.14216157]
[1748516698129,0.42648471,172.64,172.63,12.42408699]
[1748516701237,147.3,172.65,172.63,12.42408699]
[1748516701551,147.3,172.65,172.64,12.42408699]
[1748516701735,147.58432314,172.65,172.64,12.42408699]
[1748516701937,147.58432314,172.65,172.64,0.14216157]
[1748516702137,147.58432314,172.65,172.64,12.42408699]
[1748516703538,147.58432314,172.65,172.64,0.14216157]
[1748516703737,147.58432314,172.65,172.64,12.42408699]
[1748516706750,18.64964886,172.69,172.64,12.42408699]
[1748516706751,147.3,172.69,172.65,0.14216157]
[1748516706936,147.3,172.69,172.68,12.42408699]
[1748516707137,18.64964886,172.72,172.68,12.42408699]
[1748516707138,5.78983103,172.72,172.68,12.42408699]
[1748516707335,5.78983103,172.72,172.71,12.28192542]
[1748516707843,6.21631574,172.72,172.71,12.28192542]
[1748516708359,147.3,172.73,172.72,0.14216157]
[1748516708535,147.3,172.73,172.72,12.42408699]
[1748516708952,153.08938227,172.73,172.72,12.42408699]
[1748516710170,147.58432314,172.73,172.72,12.42408699]
[1748516713045,153.37370541,172.73,172.72,12.42408699]
[1748516713651,0.28432314,172.72,172.68,35.36]
[1748516713863,6.21620217,172.72,172.71,12.42408699]
[1748516716680,147.3,172.73,172.71,12.42408699]
[1748516716871,147.58432314,172.73,172.72,12.28192542]
[1748516717057,147.44216157,172.73,172.72,12.28192542]
[1748516717461,147.58432314,172.73,172.72,12.28192542]
[1748516719581,153.37370541,172.73,172.72,12.28192542]
[1748516721852,147.58432314,172.73,172.72,12.28192542]
[1748516722056,153.37370541,172.73,172.72,12.28192542]
[1748516722686,54.41174218,172.78,172.72,12.28192542]
[1748516722687,1.66,172.78,172.73,0.14216157]
[1748516722855,6.21452661,172.77,172.76,12.28192542]
[1748516723060,5.93020347,172.77,172.76,12.28192542]
[1748516723353,6.21452661,172.77,172.76,12.28192542]
[1748516725281,0.28432314,172.76,172.75,12.42408699]
[1748516726056,6.21486164,172.76,172.75,12.42408699]
[1748516726896,0.28432314,172.76,172.75,12.42408699]
[1748516727102,5.92995567,172.78,172.75,12.42408699]
[1748516727270,0.28432314,172.78,172.77,12.42408699]
[1748516727671,6.07203005,172.78,172.77,12.42408699]
[1748516727981,6.21419162,172.78,172.77,12.42408699]
[1748516728583,6.21419162,172.78,172.77,0.14216157]
[1748516728881,0.14216157,172.77,172.76,12.42408699]
[1748516729902,0.14216157,172.77,172.76,0.14216157]
[1748516730412,0.28432314,172.76,172.75,0.14216157]
[1748516731193,0.28432314,172.76,172.7,0.14216157]
[1748516731406,0.28432314,172.76,172.74,0.14216157]
[1748516732301,0.28432314,172.76,172.69,44.46]
[1748516732302,0.28432314,172.73,172.72,12.42408699]
[1748516732601,0.42648471,172.73,172.72,12.42408699]
[1748516734209,6.21586698,172.73,172.72,12.42408699]
[1748516736505,147.3,172.75,172.73,0.14216157]
[1748516736506,0.28432314,172.74,172.73,0.14216157]
[1748516736698,147.3,172.75,172.73,12.42408699]
[1748516736885,147.3,172.75,172.74,12.28192542]
[1748516737080,147.58432314,172.75,172.74,12.28192542]
[1748516738303,153.37303515,172.75,172.74,12.28192542]
[1748516740306,147.58432314,172.75,172.74,12.28192542]
[1748516740681,153.37303515,172.75,172.74,12.28192542]
[1748516741099,153.37303515,172.75,172.73,0.14216157]
[1748516741300,153.37303515,172.75,172.74,12.28192542]
[1748516743507,147.58432314,172.75,172.74,12.28192542]
[1748516744019,153.37303515,172.75,172.74,12.28192542]
[1748516745024,147.58432314,172.75,172.74,12.28192542]
[1748516745818,147.3,172.75,172.74,12.42408699]
[1748516746001,5.78802335,172.78,172.75,0.14216157]
[1748516746211,0.14216157,172.79,172.78,0.14216157]
[1748516746212,5.9296403,172.79,172.78,0.14216157]
[1748516746710,6.21396344,172.79,172.78,0.14216157]
[1748516746913,6.21396344,172.79,172.78,12.42408699]
[1748516750524,6.21396344,172.79,172.78,0.14216157]
[1748516753695,6.21396344,172.79,172.78,12.42408699]
[1748516755412,0.28432314,172.79,172.78,12.42408699]
[1748516760775,0.28432314,172.79,172.78,0.14216157]
[1748516760776,5.92953352,172.79,172.78,0.14216157]
[1748516760932,6.07169509,172.79,172.78,0.14216157]
[1748516761228,6.07169509,172.79,172.78,12.42408699]
[1748516762603,6.07169509,172.79,172.76,12.28192542]
[1748516762604,0.42648471,172.78,172.76,12.28192542]
[1748516762808,0.42648471,172.78,172.77,0.14216157]
[1748516764202,6.21419162,172.78,172.77,0.14216157]
[1748516765218,6.21419162,172.78,172.77,12.42408699]
[1748516765417,6.21419162,172.78,172.73,0.14216157]
[1748516765838,6.21419162,172.78,172.77,12.42408699]
[1748516766342,6.21395827,172.79,172.78,0.14216157]
[1748516766529,0.28432314,172.79,172.78,12.42408699]
[1748516770542,0.28432314,172.8,172.78,12.42408699]
[1748516770720,0.28432314,172.8,172.79,12.42408699]
[1748516772618,6.07136017,172.8,172.79,12.42408699]
[1748516772951,6.07136017,172.8,172.79,0.14216157]
[1748516773945,6.21352174,172.8,172.79,0.14216157]
[1748516774145,0.14216157,172.79,172.77,12.28192542]
[1748516774352,0.14216157,172.79,172.78,0.14216157]
[1748516776118,6.21385666,172.79,172.78,0.14216157]
[1748516776928,0.28432314,172.78,172.75,0.14216157]
[1748516777136,0.28432314,172.78,172.77,0.14216157]
[1748516778028,6.21419162,172.78,172.77,0.14216157]
[1748516782749,6.21419162,172.78,172.72,9.12]
[1748516782750,24.86384048,172.78,172.75,0.14216157]
[1748516782951,39.33310775,172.78,172.75,0.14216157]
[1748516783326,39.33310775,172.78,172.73,0.14216157]
[1748516783550,186.63310775,172.78,172.75,0.14216157]
[1748516784027,186.63310775,172.78,172.73,0.14216157]
[1748516784224,186.63310775,172.78,172.75,7.85777537]
[1748516785126,172.16384048,172.78,172.75,7.85777537]
[1748516785326,172.16384048,172.78,172.75,0.14216157]
[1748516789547,0.42648471,172.74,172.73,0.14216157]
[1748516790048,0.42648471,172.74,172.71,0.14216157]
[1748516790256,12.70391243,172.74,172.71,0.14216157]
[1748516790977,0.42648471,172.72,172.71,0.14216157]
[1748516791153,0.42648471,172.72,172.69,12.41958929]
[1748516792275,0.28432314,172.7,172.68,0.14216157]
[1748516792463,0.28432314,172.7,172.68,12.41958929]
[1748516794748,0.28432314,172.7,172.69,12.27742772]
[1748516796199,147.3,172.74,172.7,0.14216157]
[1748516796503,147.3,172.74,172.73,0.14216157]
[1748516796650,147.58432314,172.74,172.73,0.14216157]
[1748516797047,147.3,172.74,172.73,0.14216157]
[1748516797279,147.58432314,172.74,172.73,0.14216157]
[1748516798478,153.37337026,172.74,172.73,0.14216157]
[1748516798884,153.37337026,172.74,172.71,12.41958929]
[1748516800281,0.42648471,172.73,172.71,0.14216157]
[1748516802100,19.07613357,172.73,172.69,12.27742772]
[1748516802394,0.42648471,172.71,172.68,47.75958929]
[1748516802966,0.42648471,172.71,172.68,35.48216157]
[1748516803264,5.79038795,172.7,172.68,47.75958929]
[1748516804886,5.79038795,172.7,172.68,12.41958929]
[1748516807169,6.07471109,172.7,172.69,0.14216157]
[1748516809092,6.07471109,172.7,172.68,0.14216157]
[1748516809265,6.07471109,172.7,172.68,12.41958929]
[1748516813367,6.07471109,172.7,172.69,12.27742772]
[1748516813571,0.28432314,172.7,172.68,0.14216157]
[1748516813770,6.07471109,172.7,172.69,12.27742772]
[1748516813991,6.07471109,172.7,172.69,7.86245848]
[1748516817580,147.3,172.74,172.7,0.14216157]
[1748516817901,147.44216157,172.74,172.73,0.14216157]
[1748516818092,153.37345467,172.74,172.73,0.14216157]
[1748516818293,153.51561624,172.74,172.73,0.14216157]
[1748516820087,0.28432314,172.73,172.72,12.42256817]
[1748516820836,147.3,172.74,172.72,12.42256817]
[1748516821100,147.58432314,172.74,172.73,12.2804066]
[1748516821300,147.3,172.74,172.73,12.42256817]
[1748516821673,5.93064838,172.76,172.73,12.42256817]
[1748516821674,0.28432314,172.75,172.73,12.42256817]
[1748516821903,0.28432314,172.75,172.74,12.2804066]
[1748516822605,165.94964886,172.79,172.74,12.2804066]
[1748516822606,153.08747197,172.79,172.75,0.14216157]
[1748516822833,147.3,172.79,172.78,12.42256817]
[1748516824104,147.3,172.79,172.78,47.76256817]
[1748516825106,173.3,172.85,172.79,0.14216157]
[1748516825423,173.3,172.85,172.82,12.42256817]
[1748516825728,5.78578936,172.84,172.82,12.42256817]
[1748516825896,0.42648471,172.83,172.82,12.42256817]
[1748516826220,0.28432314,172.83,172.82,12.42256817]
[1748516826430,0.14216157,172.83,172.82,12.42256817]
[1748516826607,5.78578936,172.84,172.82,12.42256817]
[1748516826809,0.28432314,172.83,172.82,12.42256817]
[1748516827213,5.78578936,172.84,172.82,12.42256817]
[1748516827214,5.78478726,172.87,172.82,12.42256817]
[1748516827394,5.7844301,172.88,172.87,0.14216157]
[1748516827600,6.21091481,172.88,172.87,0.14216157]
[1748516828126,5.7844301,172.88,172.87,0.14216157]
[1748516828629,5.92659167,172.88,172.87,0.14216157]
[1748516828997,0.14216157,172.87,172.86,12.2804066]
[1748516829350,0.28432314,172.87,172.86,12.2804066]
[1748516830291,6.06901684,172.87,172.86,12.2804066]
[1748516830806,5.7846937,172.87,172.86,12.42256817]
[1748516832132,6.06868223,172.88,172.86,12.42256817]
[1748516832334,6.06868223,172.88,172.87,12.2804066]
[1748516834413,6.06868223,172.88,172.86,12.42256817]
[1748516837507,6.06868223,172.88,172.86,12.2804066]
[1748516837710,20.52957996,172.88,172.86,0.14216157]
[1748516839004,0.14216157,172.87,172.86,0.14216157]
[1748516839215,0.14216157,172.87,172.85,0.14216157]
[1748516840427,6.06935148,172.86,172.85,0.14216157]
[1748516842626,6.21151305,172.86,172.85,0.14216157]
[1748516842941,0.42648471,172.85,172.82,0.14216157]
[1748516843259,0.42648471,172.85,172.82,12.42256817]
[1748516843556,0.42648471,172.85,172.84,0.14216157]
[1748516844538,6.06968617,172.85,172.84,12.42256817]
[1748516846729,6.06968617,172.85,172.84,0.14216157]
[1748516847122,6.21184774,172.85,172.81,0.14216157]
[1748516847319,0.14216157,172.84,172.81,0.14216157]
[1748516847531,0.14216157,172.84,172.83,0.14216157]
[1748516848362,6.21218246,172.84,172.83,0.14216157]
[1748516849748,0.28432314,172.83,172.82,12.2804066]
[1748516850659,6.07035565,172.83,172.82,12.2804066]
[1748516851453,6.07035565,172.83,172.82,0.14216157]
[1748516852358,5.78603251,172.83,172.82,12.42256817]
[1748516852949,0.28432314,172.84,172.82,12.42256817]
[1748516853159,0.28432314,172.84,172.83,12.2804066]
[1748516853458,0.28432314,172.84,172.82,0.14216157]
[1748516853760,0.28432314,172.84,172.82,12.42256817]
[1748516855572,5.78603251,172.83,172.82,0.14216157]
[1748516855946,5.78603251,172.83,172.82,12.42256817]
[1748516856346,5.78578597,172.84,172.83,0.14216157]
[1748516856552,5.78578597,172.84,172.83,12.42256817]
[1748516859067,5.78578597,172.84,172.8,0.14216157]
[1748516859273,5.78578597,172.84,172.83,12.42256817]
[1748516860349,5.78578597,172.84,172.83,0.14216157]
[1748516862838,5.78578597,172.84,172.83,12.42256817]
[1748516868061,5.78578597,172.84,172.83,7.99181538]
[1748516873778,6.06935148,172.86,172.84,0.14216157]
[1748516873967,6.06935148,172.86,172.85,7.84965381]
[1748516875281,6.06935148,172.86,172.85,0.14216157]
[1748516875583,6.06935148,172.86,172.79,35.32]
[1748516875584,47.17338658,172.86,172.8,0.14216157]
[1748516875779,47.17338658,172.86,172.8,7.99181538]
[1748516876156,47.17338658,172.86,172.8,0.14216157]
[1748516876385,0.42648471,172.84,172.8,0.14216157]
[1748516876589,7.84965381,172.83,172.79,0.14216157]
[1748516876760,0.28432314,172.8,172.79,0.14216157]
[1748516877490,0.28432314,172.8,172.78,0.14216157]
[1748516878078,5.78737195,172.79,172.78,0.14216157]
[1748516879861,5.78737195,172.79,172.78,12.41521748]
[1748516880057,45.38785827,172.83,172.78,12.41521748]
[1748516880058,5.92819408,172.83,172.79,0.14216157]
[1748516880262,5.92819408,172.83,172.76,5.7883545]
[1748516880263,5.92819408,172.83,172.82,0.14216157]
[1748516880572,6.07035565,172.83,172.82,0.14216157]
[1748516881294,0.28432314,172.82,172.77,0.14216157]
[1748516881497,0.28432314,172.8,172.77,0.14216157]
[1748516882601,0.14216157,172.79,172.77,0.14216157]
[1748516882897,0.28432314,172.78,172.75,0.14216157]
[1748516883062,0.14216157,172.77,172.75,0.14216157]
[1748516883269,6.07270007,172.76,172.75,0.14216157]
[1748516886992,0.14216157,172.78,172.75,12.41521748]
[1748516886993,0.28432314,172.77,172.75,12.41521748]
[1748516887183,0.28432314,172.77,172.76,12.27305591]
[1748516890204,6.07236504,172.77,172.75,12.41521748]
[1748516892085,0.28432314,172.77,172.75,12.41521748]
[1748516893100,6.07242879,172.77,172.75,12.41521748]
[1748516895097,0.28432314,172.77,172.75,12.41521748]
[1748516897407,0.28432314,172.77,172.76,12.27305591]
[1748516897583,6.07236504,172.77,172.76,12.27305591]
[1748516902639,0.42648471,172.76,172.64,1.5268]
[1748516902802,0.42648471,172.76,172.73,0.14216157]
[1748516903112,19.07613357,172.76,172.73,0.14216157]
[1748516903890,0.42648471,172.74,172.73,0.14216157]
[1748516905187,0.42648471,172.74,172.68,0.14216157]
[1748516905388,0.42648471,172.74,172.73,0.14216157]
[1748516905985,6.21553183,172.74,172.73,0.14216157]
[1748516906193,6.21553183,172.74,172.68,0.14216157]
[1748516906405,6.21553183,172.74,172.67,41.8588]
[1748516906406,6.21553183,172.74,172.72,12.27305591]
[1748516909192,6.21553183,172.74,172.67,21.65012725]
[1748516909193,9.28,172.79,172.74,0.14216157]
[1748516909520,20.29454886,172.82,172.78,12.27305591]
[1748516909691,0.42648471,172.8,172.78,12.27305591]
[1748516910389,6.21361315,172.8,172.78,12.27305591]
[1748516911623,0.42648471,172.8,172.78,12.27305591]
[1748516912614,0.42648471,172.8,172.78,0.14216157]
[1748516914920,6.21359696,172.8,172.78,0.14216157]
[1748516915603,6.21359696,172.8,172.77,0.14216157]
[1748516916007,0.42648471,172.8,172.77,12.41521748]
[1748516916204,0.42648471,172.8,172.79,0.14216157]
[1748516917055,0.42648471,172.82,172.8,0.14216157]
[1748516917194,33.71543714,172.84,172.82,0.14216157]
[1748516917195,5.78578828,172.84,172.82,0.14216157]
[1748516917531,0.42648471,172.83,172.82,12.41521748]
[1748516917841,0.42648471,172.83,172.82,0.14216157]
[1748516918527,5.92819408,172.83,172.82,0.14216157]
[1748516919022,6.21251722,172.83,172.82,0.14216157]
[1748516921823,6.21251722,172.83,172.8,0.14216157]
[1748516922402,6.21251722,172.83,172.75,0.14216157]
[1748516922603,6.21251722,172.83,172.8,0.14216157]
[1748516928141,18.933972,172.82,172.79,0.14216157]
[1748516930031,0.42648471,172.8,172.79,0.14216157]
[1748516930906,0.28432314,172.8,172.79,12.41521748]
[1748516931343,5.78644017,172.82,172.79,12.41521748]
[1748516931519,0.42648471,172.81,172.8,0.14216157]
[1748516932038,6.21318686,172.81,172.8,0.14216157]
[1748516932246,6.21318686,172.81,172.78,12.27305591]
[1748516932418,6.21318686,172.81,172.79,0.14216157]
[1748516932803,6.21318686,172.81,172.76,0.14216157]
[1748516933008,6.21318686,172.81,172.78,12.27305591]
[1748516933210,6.21318686,172.81,172.79,0.14216157]
[1748516936725,18.48624277,172.81,172.76,0.14216157]
[1748516937047,6.21318686,172.81,172.76,0.14216157]
[1748516937347,6.21318686,172.81,172.78,0.14216157]
[1748516938135,6.21318686,172.81,172.75,0.14216157]
[1748516938337,6.21318686,172.81,172.78,0.14216157]
[1748516940260,6.21318686,172.81,172.77,0.14216157]
[1748516940261,18.48624277,172.81,172.77,0.14216157]
[1748516940423,32.95299816,172.81,172.77,0.14216157]
[1748516940625,6.21318686,172.81,172.77,12.41521748]
[1748516941140,6.21318686,172.81,172.79,12.41521748]
[1748516942453,0.28432314,172.81,172.8,12.41521748]
[1748516942969,6.21318686,172.81,172.8,0.14216157]
[1748516945254,6.21318686,172.81,172.8,12.41521748]
[1748516945819,0.28432314,172.81,172.8,12.41521748]
[1748516947861,6.07102529,172.81,172.8,12.41521748]
[1748516948454,0.28432314,172.81,172.8,0.14216157]
[1748516950653,6.07102529,172.81,172.8,0.14216157]
[1748516951357,0.28432314,172.81,172.8,0.14216157]
[1748516951529,147.3,172.82,172.8,7.9947321]
[1748516952358,153.08641092,172.82,172.8,7.9947321]
[1748516952748,147.3,172.82,172.8,7.9947321]
[1748516953167,147.3,172.82,172.81,7.9947321]
[1748516953354,0.28432314,172.83,172.81,7.9947321]
[1748516955266,5.78636731,172.82,172.81,7.9947321]
[1748516958258,5.78636731,172.82,172.81,0.14216157]
[1748516959671,5.78636731,172.82,172.79,0.14216157]
[1748516959872,5.78636731,172.82,172.81,0.14216157]
[1748516960264,5.78636731,172.82,172.79,7.9947321]
[1748516960872,5.78636731,172.82,172.81,0.14216157]
[1748516962565,5.78636731,172.82,172.81,7.9947321]
[1748516968787,5.78569775,172.84,172.82,0.14216157]
[1748516968966,5.78569775,172.84,172.83,7.9947321]
[1748516970864,147.3,172.86,172.83,7.9947321]
[1748516970865,147.3,172.86,172.84,0.14216157]
[1748516971076,153.08510675,172.86,172.84,7.9947321]
[1748516971479,153.08510675,172.86,172.84,0.14216157]
[1748516971776,153.08510675,172.86,172.84,7.9947321]
[1748516974311,153.08510675,172.86,172.84,0.14216157]
[1748516975416,153.36942989,172.86,172.85,0.14216157]
[1748516975914,153.08510675,172.86,172.85,0.14216157]
[1748516976074,153.08510675,172.86,172.85,7.9947321]
[1748516980404,153.08510675,172.86,172.85,0.14216157]
[1748516980609,153.08510675,172.86,172.85,7.9947321]
[1748516980823,6.2108438,172.88,172.85,7.9947321]
[1748516981623,6.2108438,172.88,172.85,0.14216157]
[1748516981785,6.2108438,172.88,172.85,7.9947321]
[1748516982505,6.2108438,172.88,172.87,0.14216157]
[1748516986313,6.2108438,172.88,172.86,0.14216157]
[1748516986903,6.2108438,172.88,172.85,0.14216157]
[1748516987524,6.2108438,172.88,172.87,0.14216157]
[1748516988319,6.2108438,172.88,172.86,0.14216157]
[1748516990928,6.2108438,172.88,172.85,0.14216157]
[1748516991300,6.2108438,172.88,172.86,0.14216157]
[1748516994900,6.2108438,172.88,172.83,0.14216157]
[1748516995113,6.2108438,172.88,172.86,0.14216157]
[1748516995504,6.2108438,172.88,172.83,0.14216157]
[1748516995700,6.2108438,172.88,172.85,0.14216157]
[1748516995925,14.06341433,172.88,172.85,0.14216157]
[1748516996224,14.06341433,172.88,172.82,0.14216157]
[1748516996225,8.27905524,172.86,172.82,0.14216157]
[1748516996407,0.42648471,172.84,172.82,0.14216157]
[1748516997606,6.21251722,172.83,172.82,0.14216157]
[1748516998341,6.21251722,172.83,172.82,7.9947321]
[1748516998813,0.28432314,172.82,172.8,0.14216157]
[1748516999018,0.28432314,172.82,172.81,7.85257053]
[1748517000432,6.07095347,172.82,172.8,0.14216157]
[1748517000741,6.07095347,172.82,172.81,7.85257053]
[1748517002353,5.78536303,172.85,172.81,7.9947321]
[1748517002542,0.42648471,172.84,172.83,0.14216157]
[1748517003931,6.21218246,172.84,172.83,0.14216157]
[1748517004128,6.07002089,172.84,172.83,0.14216157]
[1748517004329,6.07002089,172.84,172.83,7.9947321]
[1748517005167,153.08534416,172.86,172.84,0.14216157]
[1748517005337,153.22750573,172.86,172.85,7.85257053]
[1748517005535,153.3696673,172.86,172.85,7.85257053]
[1748517007959,153.3696673,172.86,172.85,0.14216157]
[1748517009454,153.3696673,172.86,172.85,7.9947321]
[1748517009968,147.58432314,172.86,172.85,7.9947321]
[1748517010268,153.36935148,172.86,172.85,7.9947321]
[1748517013047,153.51151305,172.86,172.85,0.14216157]
[1748517014544,153.36935148,172.86,172.85,7.9947321]
[1748517014744,147.58432314,172.86,172.85,7.9947321]
[1748517016052,153.36935148,172.86,172.85,7.9947321]
[1748517017057,147.58432314,172.86,172.85,7.9947321]
[1748517017455,147.3,172.86,172.85,7.9947321]
[1748517017779,147.3,172.93,172.86,0.14216157]
[1748517017980,5.78325542,172.92,172.91,0.14216157]
[1748517018774,6.20974013,172.92,172.91,0.14216157]
[1748517019172,5.92541699,172.92,172.91,0.14216157]
[1748517019552,6.20974013,172.92,172.91,0.14216157]
[1748517020275,6.20974013,172.92,172.88,0.14216157]
[1748517020585,0.28432314,172.91,172.9,7.85257053]
[1748517020956,6.06767864,172.91,172.89,7.85257053]
[1748517021479,6.20984021,172.91,172.9,0.14216157]
[1748517021776,0.14216157,172.9,172.89,0.14216157]
[1748517022467,6.2101747,172.9,172.89,0.14216157]
[1748517023358,6.2101747,172.9,172.89,7.9947321]
[1748517023987,6.2101747,172.9,172.89,12.39842881]
[1748517024489,6.2101747,172.9,172.89,0.14216157]
[1748517026481,0.28432314,172.89,172.88,0.14216157]
[1748517027262,6.06834766,172.89,172.88,0.14216157]
[1748517028311,6.06834766,172.89,172.87,0.14216157]
[1748517028464,0.14216157,172.88,172.87,0.14216157]
[1748517028861,0.14216157,172.88,172.85,12.39842881]
[1748517029091,0.14216157,172.88,172.85,48.01842881]
[1748517029889,0.28432314,172.87,172.85,48.01842881]
[1748517032094,6.069321,172.87,172.85,48.01842881]
[1748517034608,0.28432314,172.87,172.85,48.01842881]
[1748517034803,0.28432314,172.87,172.86,12.25626724]
[1748517036395,0.28432314,172.88,172.86,12.39842881]
[1748517036575,5.78375404,172.9,172.87,12.39842881]
[1748517036777,0.28432314,172.89,172.87,12.39842881]
[1748517037409,0.28432314,172.89,172.87,0.14216157]
[1748517038190,6.06841885,172.89,172.87,0.14216157]
[1748517049029,0.14216157,172.87,172.8,26.0]
[1748517049241,7.8460911,172.85,172.8,0.14216157]
[1748517049535,38.89380588,172.89,172.8,0.14216157]
[1748517049536,0.14216157,172.83,172.8,0.14216157]
[1748517049739,0.14216157,172.83,172.8,7.98825267]
[1748517049925,0.28432314,172.84,172.83,0.14216157]
[1748517050418,6.07002089,172.84,172.83,7.98825267]
[1748517050603,6.07002089,172.84,172.83,0.14216157]
[1748517052324,0.28432314,172.84,172.83,0.14216157]
[1748517052630,0.14216157,172.86,172.83,7.98825267]
[1748517052834,0.42648471,172.86,172.83,7.98825267]
[1748517053824,6.2116121,172.86,172.83,7.98825267]
[1748517056416,0.14216157,172.87,172.84,0.14216157]
[1748517056631,0.42648471,172.87,172.84,0.14216157]
[1748517056833,6.21122103,172.87,172.84,0.14216157]
[1748517062539,0.28432314,172.87,172.86,0.14216157]
[1748517062917,6.21117841,172.87,172.85,7.8460911]
[1748517063225,6.21117841,172.87,172.85,0.14216157]
[1748517063812,147.3,172.88,172.85,0.14216157]
[1748517064018,147.58432314,172.88,172.87,0.14216157]
[1748517064644,153.36868223,172.88,172.87,0.14216157]
[1748517065146,153.36868223,172.88,172.85,7.98825267]
[1748517065918,147.58432314,172.88,172.86,7.8460911]
[1748517066117,147.3,172.88,172.87,7.98825267]
[1748517068326,5.78267776,172.94,172.88,0.14216157]
[1748517068630,5.78267776,172.94,172.91,0.14216157]
[1748517068833,0.14216157,172.93,172.91,7.98825267]
[1748517069150,0.42648471,172.93,172.91,7.98825267]
[1748517069746,0.42648471,172.93,172.9,7.8460911]
[1748517070066,6.20925089,172.93,172.9,7.8460911]
[1748517070818,6.20925089,172.93,172.89,0.14216157]
[1748517071036,6.20925089,172.93,172.92,0.14216157]
[1748517071225,5.92451939,172.94,172.92,7.98825267]
[1748517071427,0.14216157,172.93,172.92,0.14216157]
[1748517075554,0.14216157,172.93,172.91,0.14216157]
[1748517076655,5.78274258,172.93,172.91,0.14216157]
[1748517081463,0.28432314,172.92,172.85,26.0]
[1748517081754,8.27257581,172.92,172.89,0.14216157]
[1748517081964,0.42648471,172.9,172.89,0.14216157]
[1748517082254,0.42648471,172.9,172.87,0.14216157]
[1748517083258,5.78402452,172.89,172.87,0.14216157]
[1748517084357,0.28432314,172.88,172.86,0.14216157]
[1748517084653,0.42648471,172.88,172.86,0.14216157]
[1748517085061,8.27257581,172.88,172.84,0.14216157]
[1748517085751,8.27257581,172.88,172.84,7.8460911]
[1748517085952,8.27257581,172.88,172.85,0.14216157]
[1748517086340,0.28432314,172.86,172.85,0.14216157]
[1748517087335,8.27257581,172.86,172.83,0.14216157]
[1748517087554,0.42648471,172.84,172.83,0.14216157]